Cogmind - Beta 10.2 @@@ ROGUE MODE // 2020.11.02 @ 22:56:39 // Halloween2020/ForbiddenLore Player: Plexion Result: Self-destructed Performance ------------- Evolutions (3) 1500 Regions Visited (11) 2200 Robots Destroyed (131) 655 Value Destroyed (5521) 5521 Prototype IDs (28) 560 Alien Tech Used (0) 0 Bonus (2207) 2207 TOTAL SCORE: 12643 Bonus ------- High Alert Combat Kills 317 Follower Combat Kills 207 Entered Garrisons 400 Used RIF Installer 1000 Aligned with FarCom 300 Friendly Fire -17 Cogmind --------- Core Integrity 290/700 Matter 250/300 Energy 239/300 System Corruption 8% Temperature Cool (0) Movement Treading (175) Ox1 Location -7/Garrison Parts ------- > --- POWER (2) -------- Enhanced Nuclear Core > --- PROPULSION (3) --- Light Treads Light Treads Advanced Treads > --- UTILITY (5) ------ Improved Cooling System Large Storage Unit High-capacity Storage Unit High-capacity Storage Unit Improved Light Armor Plating > --- WEAPON (3) ------- Enhanced Autogun Gauss Rifle Remote Datajack > --- INVENTORY (26) --- Light Treads Large Storage Unit Long-range Terrain Scanner Phase Shifter Improved Light Armor Plating EM Shield Improved Shield Generator Relay Coupler [NC] (28) Relay Coupler [NC] (22) Relay Coupler [NC] (23) Relay Coupler [NC] (28) Relay Coupler [NC] (26) Relay Coupler [Swarmer] (33) Relay Coupler [Grunt] (29) Relay Coupler [Grunt] (28) Relay Coupler [Grunt] (30) Relay Coupler [Sentry] (23) Improved EM Pulse Cannon Guided Plasma Cannon Enhanced Autogun Gauss Rifle Slug Cannon Advanced EMP Blaster Proton Missile Launcher Katana Peak State ------------ > --- POWER ------------ Enhanced Nuclear Core Enhanced Nuclear Core > --- PROPULSION ------- Advanced Treads Advanced Treads Medium Treads > --- UTILITY ---------- Improved Cooling System Large Storage Unit High-capacity Storage Unit High-capacity Storage Unit Hardened Medium Armor Plating > --- WEAPON ----------- Improved EM Pulse Cannon Improved EM Pulse Cannon Remote Datajack > --- INVENTORY -------- Enhanced Nuclear Core Light Treads Light Treads Armored Treads Advanced Treads Large Storage Unit Long-range Terrain Scanner Medium Reactive Plating Improved Shield Generator Relay Coupler [NC] Relay Coupler [Swarmer] Relay Coupler [Swarmer] Relay Coupler [Sentry] Improved EM Pulse Cannon Improved EM Pulse Cannon Guided Plasma Cannon Heavy Assault Rifle Enhanced Autogun Enhanced Autogun Enhanced Autogun Gauss Rifle Gauss Rifle Slug Cannon Advanced EMP Blaster Proton Missile Launcher Katana [Rating: 51] Favorites ----------- Power Improved Ion Engine Engine Improved Ion Engine Power Core Enhanced Nuclear Core Propulsion Advanced Treads Treads Advanced Treads Utility High-capacity Storage Unit Device Improved Cooling System Storage High-capacity Storage Unit Hackware Relay Coupler [Sentry] Protection Hardened Medium Armor Plating Weapon Enhanced Autogun Energy Gun Medium Laser Energy Cannon Improved EM Pulse Cannon Ballistic Gun Enhanced Autogun Launcher Advanced EMP Blaster Special Weapon Remote Datajack Slashing Weapon Katana Build | -11 -10 -10 -9 -9 -9 -8 -8 -8 -8 -7 -7 ------- Run | Scr Mat Min Mat Min Exi Min Mat Gar Mat Fac Gar Slots Evolved 6 | . . . 2 . . . 2 . . 2 . Power 1 | . . . . . . . . . . 1 . Propulsion 1 | . . . . . . . 1 . . . . Utility 3 | . . . 1 . . . 1 . . 1 . Weapon 1 | . . . 1 . . . . . . . . Parts Attached 110 | 7 8 . 16 2 2 1 12 4 12 23 23 Power 12 | 1 1 . 2 . . . . 1 . 4 3 Engine 8 | 1 1 . 2 . . . . 1 . 2 1 Core 4 | . . . . . . . . . . 2 2 Reactor . | . . . . . . . . . . . . Propulsion 23 | 2 . . 3 1 . . 4 . 3 5 5 Treads 23 | 2 . . 3 1 . . 4 . 3 5 5 Leg . | . . . . . . . . . . . . Wheel . | . . . . . . . . . . . . Hover . | . . . . . . . . . . . . Flight . | . . . . . . . . . . . . Utility 28 | 2 2 . 5 1 2 . 2 1 1 5 7 Device 4 | . . . 1 . . . . . . 2 1 Storage 9 | 2 2 . 1 1 2 . . . 1 . . Processor . | . . . . . . . . . . . . Hackware 4 | . . . . . . . . . . 1 3 Protection 11 | . . . 3 . . . 2 1 . 2 3 Artifact . | . . . . . . . . . . . . Weapon 47 | 2 5 . 6 . . 1 6 2 8 9 8 Energy Gun 4 | 1 1 . 2 . . . . . . . . Energy Cannon 8 | . . . . . . . 1 1 . 6 . Ballistic Gun 28 | 1 4 . 4 . . . 5 1 6 2 5 Ballistic Cannon . | . . . . . . . . . . . . Launcher 3 | . . . . . . 1 . . 1 . 1 Special Weapon 3 | . . . . . . . . . . 1 2 Impact Weapon . | . . . . . . . . . . . . Slashing Weapon 1 | . . . . . . . . . 1 . . Piercing Weapon . | . . . . . . . . . . . . Special Melee Weapon . | . . . . . . . . . . . . Unidentified Prototypes 5 | . . . 2 . . . 1 . 1 1 . Parts Lost 27 | . 2 . 4 . . . . 2 4 1 14 Power 7 | . 1 . 1 . . . . 1 . . 4 Propulsion 5 | . . . . . . . . . 1 . 4 Utility 4 | . . . 1 . . . . 1 . . 2 Weapon 11 | . 1 . 2 . . . . . 3 1 4 Highest Loss Streak 8 | . 1 . 3 . . . . 2 2 1 8 Average Slot Usage (%) 98 | . 99 100 92 100 100 100 99 99 99 98 92 Engine 9 | . 14 14 11 11 11 11 9 8 9 10 1 Core 1 | . . . . . . . . . . 2 7 Treads 24 | . 28 28 22 22 22 22 26 27 27 23 22 Device 1 | . . . . . . . . . . 7 1 Storage 26 | . 28 28 22 30 33 33 27 27 27 23 23 Protection 5 | . . . 5 2 . . 8 8 9 6 6 Energy Cannon 1 | . . . . . . . . . . 7 2 Ballistic Gun 23 | . 18 28 29 33 33 32 26 26 26 14 12 Naked Turns . | . . . . . . . . . . . . Heaviest Build 127 | 15 37 37 55 56 96 96 104 110 106 123 127 Greatest Support 72 | 40 40 40 40 40 40 40 66 66 66 72 72 Greatest Overweight (x) 2 | 1 . . 1 1 2 2 2 1 1 1 2 Average Overweight (x) . | . . . . 1 1 2 1 1 1 1 1 Largest Inventory Capacity 26 | 8 16 16 22 20 26 26 26 26 26 26 26 Average Capacity 22 | 5 8 16 16 19 23 26 26 26 26 26 26 Most Carried 26 | 5 11 14 16 20 23 25 26 26 26 26 26 Average Carried 21 | 3 5 13 15 19 21 23 25 25 25 25 22 Final Capacity 26 | 8 16 16 16 20 26 26 26 26 26 26 26 Final Carried 26 | 4 10 14 16 20 23 25 26 26 24 24 25 Class Distribution -------------------- 39% | Hauler-Skirmisher 16% | Mutant 15% | Hauler-Mutant 10% | Hauler-Gunner 10% | Bothacker-Mutant 5% | Tank Dominant Class ---------------- Mutant | -10/Materials Mutant | -10/Mines Tank | -9/Materials Hauler-Gunner | -9/Mines Hauler-Gunner | -9/Exiles Hauler-Skirmisher | -8/Mines Hauler-Skirmisher | -8/Materials Hauler-Skirmisher | -8/Garrison Hauler-Skirmisher | -8/Materials Hauler-Mutant | -7/Factory Bothacker-Mutant | -7/Garrison Resources | -11 -10 -10 -9 -9 -9 -8 -8 -8 -8 -7 -7 ----------- Run | Scr Mat Min Mat Min Exi Min Mat Gar Mat Fac Gar Matter Collected 3829 | 282 175 71 357 246 40 12 578 393 649 444 582 Remotely . | . . . . . . . . . . . . Salvage Created 5717 | 83 474 99 765 318 . 28 1036 586 993 679 656 Parts 307 | 3 36 3 45 17 . 7 52 25 60 34 25 Haulers Intercepted 11 | . 1 . 2 . . . 4 . 3 1 . Recyclers Shooed . | . . . . . . . . . . . . Parts Field Recycled . | . . . . . . . . . . . . Retrieved Matter . | . . . . . . . . . . . . Parts Self-Destructed . | . . . . . . . . . . . . Prevented . | . . . . . . . . . . . . Kills | -11 -10 -10 -9 -9 -9 -8 -8 -8 -8 -7 -7 ------- Run | Scr Mat Min Mat Min Exi Min Mat Gar Mat Fac Gar Combat Hostiles Destroyed 100 | . 13 2 11 7 . 3 11 13 17 10 13 Guns 88 | . 13 2 11 7 . . 11 13 17 7 7 Cannons 5 | . . . . . . . . . . 3 2 AOE 6 | . . . . . . 3 . . . . 3 Classes Destroyed 13 | 1 6 . 2 1 . . 2 . . 1 . Worker 4 | . . . 3 . . . 1 . . . . Builder 2 | . 1 . . . . . . . 1 . . Tunneler 2 | . 1 . 1 . . . . . . . . Hauler 11 | . 1 . 2 . . . 4 . 3 1 . Recycler 5 | 1 . . 1 . . . 2 . . 1 . Watcher 7 | . 2 . 1 . . . 2 . 1 1 . Swarmer 17 | . 6 . . . . 3 . 2 2 . 4 Grunt 48 | . 7 2 7 5 . . 4 7 8 4 4 Brawler 5 | . . . . 1 . . 1 1 1 . 1 Duelist 4 | . . . . . . . 1 . . 2 1 Sentry 16 | . . . 4 1 . . 4 1 3 1 2 Hunter 7 | . . . . . . . 1 2 3 1 . Programmer 3 | . . . . . . . . . . 2 1 Best Kill Streak 5 | 1 3 1 4 2 . 3 2 3 5 3 4 Combat Bots Only 4 | . 3 1 3 2 . 3 2 3 4 3 4 Max Kills in Single Turn 3 | 1 1 1 1 1 . 3 2 2 2 1 2 Gunslinging 1 | . . . . . . . 1 1 . . 1 Exploded 3 | . . . . . . 3 . . . . 1 Melee . | . . . . . . . . . . . . Uniques/NPCs Destroyed . | . . . . . . . . . . . . Combat | -11 -10 -10 -9 -9 -9 -8 -8 -8 -8 -7 -7 -------- Run | Scr Mat Min Mat Min Exi Min Mat Gar Mat Fac Gar Damage Taken 7190 | . 597 115 554 381 . 57 241 956 1063 918 2308 Core 940 | . 144 18 63 . . 12 30 134 129 195 215 Absorbed by Shields . | . . . . . . . . . . . . Core Remaining (%) 65 | 100 . 35 . . . 81 . . 46 . . Volleys Fired 410 | 4 47 12 45 24 . 3 48 49 70 38 70 Largest 3 | 2 2 2 3 3 . 3 3 3 3 3 3 Hottest 161 | 70 70 40 105 69 . 69 75 75 75 138 161 Shots Fired 987 | 8 93 24 122 72 . 7 144 123 183 102 109 Gun 932 | 8 93 24 122 72 . 6 144 121 183 87 72 Cannon 23 | . . . . . . . . 2 . 12 9 Launcher 9 | . . . . . . 1 . . . . 8 Special 23 | . . . . . . . . . . 3 20 Kinetic 895 | 4 68 24 114 72 . 6 144 121 183 87 72 Thermal 37 | 4 25 . 8 . . . . . . . . Explosive 1 | . . . . . . 1 . . . . . Electromagnetic 31 | . . . . . . . . 2 . 12 17 Robot Hit Streak 28 | 2 14 16 11 28 . 5 18 11 16 22 15 Robot Miss Streak 4 | 1 4 1 2 1 . 2 3 4 3 3 3 Penetration Max . | . . . . . . . . . . . . Secondary Targets 12 | . 1 . . 1 . . 1 2 3 1 3 Max Gunslinging Chain 1 | . 1 . . 1 . . 1 1 1 1 1 Shots Hit Robots 693 | 5 67 18 84 62 . 4 104 75 132 69 73 Core Hits 247 | 2 28 7 38 10 . 4 36 27 44 26 25 Critical Hits 3 | . . . . . . . 2 . . 1 . Critical Kills 2 | . . . . . . . 2 . . . . Critical Parts Destroyed 1 | . . . . . . . . . . 1 . Melee Attacks 2 | . . . . . . . . . 2 . . Impact . | . . . . . . . . . . . . Slashing 2 | . . . . . . . . . 2 . . Piercing . | . . . . . . . . . . . . Sneak Attacks . | . . . . . . . . . . . . Combat Hostiles . | . . . . . . . . . . . . Follow-up Attacks . | . . . . . . . . . . . . Damage Inflicted 10349 | 52 680 138 914 935 . 174 1661 1033 1993 1173 1596 Guns 9379 | 52 680 138 914 935 . 56 1661 971 1993 1047 932 Cannons 342 | . . . . . . . . 62 . 126 154 Explosions 628 | . . . . . . 118 . . . . 510 Melee . | . . . . . . . . . . . . Ramming . | . . . . . . . . . . . . Kinetic 9024 | 39 416 138 836 935 . 56 1661 971 1993 1047 932 Thermal 355 | 13 264 . 78 . . . . . . . . Explosive 118 | . . . . . . 118 . . . . . Electromagnetic 852 | . . . . . . . . 62 . 126 664 Impact . | . . . . . . . . . . . . Slashing . | . . . . . . . . . . . . Piercing . | . . . . . . . . . . . . Highest Corruption 8 | . . . . . . . 1 1 1 . 8 Average Corruption 2 | . . . . . . . 1 1 1 . 7 Corruption Purged . | . . . . . . . . . . . . Effects 47 | . . . . . . . 8 3 4 . 32 Message Errors 7 | . . . . . . . 1 . . . 6 Matter Fused 7 | . . . . . . . . . . . 7 Heat Flow Errors 4 | . . . . . . . . . . . 4 Energy Discharges 7 | . . . . . . . 3 . . . 4 Data Loss (minor) 5 | . . . . . . . 2 . . . 3 Data Loss (major) 1 | . . . . . . . . . . . 1 Misfires 2 | . . . . . . . . . . . 2 Targeting Errors 11 | . . . . . . . 2 3 1 . 5 Weapon Failures 3 | . . . . . . . . . 3 . . Overload Shots . | . . . . . . . . . . . . Overflow Damage 3 | . . . . . . . . 3 . . . Projectiles 3 | . . . . . . . . 3 . . . Explosions . | . . . . . . . . . . . . Melee . | . . . . . . . . . . . . Knockbacks . | . . . . . . . . . . . . Impact . | . . . . . . . . . . . . Kinetic . | . . . . . . . . . . . . Secondary . | . . . . . . . . . . . . Self-Inflicted Damage 48 | . . . . . . . . . . . 48 Shots 2 | . . . . . . . . . . . 2 Rammed 1 | . . . 1 . . . . . . . . Targets Rammed 1 | . . . 1 . . . . . . . . Kicked . | . . . . . . . . . . . . Crushed . | . . . . . . . . . . . . Highest Temperature 407 | 27 90 18 198 237 . 3 218 407 320 18 260 Average Temperature 73 | 12 18 10 46 78 . 2 39 149 111 6 45 Received Heat Transfer 1455 | . 195 69 222 180 . . 81 90 324 111 183 Effects 10 | . . . . 3 . . . 2 5 . . Energy Bleed 3 | . . . . . . . . 1 2 . . Interference 6 | . . . . 3 . . . . 3 . . Damage (minor) 1 | . . . . . . . . 1 . . . Siege Activations . | . . . . . . . . . . . . Robots Corrupted 1 | . . . . . . . . . . . 1 Combat Hostiles 1 | . . . . . . . . . . . 1 Parts Fried 1 | . . . . . . . . . . . 1 Impact Corruptions . | . . . . . . . . . . . . Robots Melted . | . . . . . . . . . . . . Combat Hostiles . | . . . . . . . . . . . . Parts Melted 2 | . 1 . . . . . . . . . 1 Heat Transferred 914 | 37 777 . 100 . . . . . . . . Parts Sabotaged . | . . . . . . . . . . . . Parts Stolen . | . . . . . . . . . . . . Parts Stripped . | . . . . . . . . . . . . Power Chain Reactions 1 | . . . . . . . . . . . 1 Missiles Intercepted . | . . . . . . . . . . . . Alert | -11 -10 -10 -9 -9 -9 -8 -8 -8 -8 -7 -7 ------- Run | Scr Mat Min Mat Min Exi Min Mat Gar Mat Fac Gar Peak Influence 942 | 5 205 75 216 273 . 149 489 942 590 280 488 Initial 458 | . 3 25 . 43 . . 57 317 458 191 35 Average 250 | . 82 30 59 134 . 9 264 719 442 149 324 Maximum Alert Level 3 | . 1 . 1 1 . . 2 3 2 1 2 Low Security (%) 50 | 100 95 100 94 73 . 100 28 . . 74 16 Level 1 26 | . 4 . 5 26 . . 59 4 23 25 61 Level 2 19 | . . . . . . . 11 51 76 . 22 Level 3 4 | . . . . . . . . 44 . . . Level 4 . | . . . . . . . . . . . . Level 5 . | . . . . . . . . . . . . High Security . | . . . . . . . . . . . . Max Security . | . . . . . . . . . . . . Squads Dispatched 16 | . 2 . 1 . . . 2 . 6 5 . Investigation 8 | . 1 . 1 . . . . . 3 3 . Extermination 2 | . . . . . . . . . . 2 . Reinforcement 4 | . 1 . . . . . 1 . 2 . . Assault . | . . . . . . . . . . . . Garrison 2 | . . . . . . . 1 . 1 . . Intercept . | . . . . . . . . . . . . Construction Impeded . | . . . . . . . . . . . . Haulers Reinforced . | . . . . . . . . . . . . Stealth | -11 -10 -10 -9 -9 -9 -8 -8 -8 -8 -7 -7 --------- Run | Scr Mat Min Mat Min Exi Min Mat Gar Mat Fac Gar Distress Signals 14 | . 2 . 3 . . . 4 . 4 . 1 Communications Jammed . | . . . . . . . . . . . . Distress Signals . | . . . . . . . . . . . . Times Spotted 158 | . 19 2 16 9 . 3 21 13 32 14 29 Peak Tracking Total 8 | . 3 2 3 3 . 3 2 5 4 3 8 Tactical Retreats 7 | . . . . . . . . 1 1 2 3 Traps | -11 -10 -10 -9 -9 -9 -8 -8 -8 -8 -7 -7 ------- Run | Scr Mat Min Mat Min Exi Min Mat Gar Mat Fac Gar Traps Triggered 28 | . 2 . 1 . . . 1 5 2 1 16 Indirectly 1 | . . . . . . . . . . . 1 Trap Hack Attempts . | . . . . . . . . . . . . Triggered . | . . . . . . . . . . . . Disarmed . | . . . . . . . . . . . . Reprogrammed . | . . . . . . . . . . . . Reused . | . . . . . . . . . . . . Traps Extracted . | . . . . . . . . . . . . Installed . | . . . . . . . . . . . . Triggered . | . . . . . . . . . . . . Machines | -11 -10 -10 -9 -9 -9 -8 -8 -8 -8 -7 -7 ---------- Run | Scr Mat Min Mat Min Exi Min Mat Gar Mat Fac Gar Machines Disabled 17 | . . . . 2 . 5 4 2 . . 4 Max in Single Turn 5 | . . . . 1 . 5 2 1 . . 1 Garrison Access 1 | . . . . . . . . . 1 . . Garrison Relay 6 | . . . . . . . . 2 . . 4 Machines Sabotaged . | . . . . . . . . . . . . Garrisons Compromised . | . . . . . . . . . . . . Overloaded Fab Kills . | . . . . . . . . . . . . Fab Network Shutdowns . | . . . . . . . . . . . . Hacking | -11 -10 -10 -9 -9 -9 -8 -8 -8 -8 -7 -7 --------- Run | Scr Mat Min Mat Min Exi Min Mat Gar Mat Fac Gar Machines Accessed 21 | . 2 1 1 . 2 . 4 . 5 6 . Terminals 12 | . 2 1 1 . . . 3 . 3 2 . Fabricators . | . . . . . . . . . . . . Repair Stations . | . . . . . . . . . . . . Recycling Units 3 | . . . . . . . . . 1 2 . Scanalyzers 1 | . . . . . . . . . . 1 . Garrison Access 3 | . . . . . . . 1 . 1 1 . Total Hacks 37 | . 2 2 4 . 2 . 8 . 11 8 . Successful 15 | . 1 . 2 . 2 . 2 . 5 3 . Failed 22 | . 1 2 2 . . . 6 . 6 5 . Catastrophic 4 | . 1 1 . . . . 1 . . 1 . Database Lockouts . | . . . . . . . . . . . . Manual 33 | . 2 2 4 . 1 . 7 . 10 7 . Terminals 25 | . 2 2 4 . . . 7 . 7 3 . Fabricators . | . . . . . . . . . . . . Repair Stations . | . . . . . . . . . . . . Recycling Units 3 | . . . . . . . . . 1 2 . Scanalyzers 2 | . . . . . . . . . . 2 . Garrison Access 5 | . . . . . . . 1 . 3 1 . Terminal Hacks 8 | . 1 . 2 . 2 . 1 . 2 . . Record 1 | . . . . . 1 . . . . . . Branch Access Points 2 | . . . 1 . . . 1 . . . . Unreport Threat 1 | . . . . . . . . . 1 . . Recall Investigation 1 | . . . . . . . . . 1 . . Zone Layout 2 | . 1 . 1 . . . . . . . . EX-Prototype ID Bank 1 | . . . . . 1 . . . . . . Fabricator Hacks . | . . . . . . . . . . . . Repair Station Hacks . | . . . . . . . . . . . . Recycling Unit Hacks . | . . . . . . . . . . . . Scanalyzer . | . . . . . . . . . . . . Garrison Access Hacks 3 | . . . . . . . 1 . 1 1 . Unlock Access 2 | . . . . . . . 1 . . 1 . Seal Access 1 | . . . . . . . . . 1 . . Unauthorized Hacks 4 | . . . . . . . . . 2 2 . Terminals . | . . . . . . . . . . . . Fabricators . | . . . . . . . . . . . . Repair Stations . | . . . . . . . . . . . . Recycling Units 3 | . . . . . . . . . 1 2 . Tunnel 3 | . . . . . . . . . 1 2 . Scanalyzers . | . . . . . . . . . . . . Garrison Access 1 | . . . . . . . . . 1 . . Restock 1 | . . . . . . . . . 1 . . Data Cores Recovered . | . . . . . . . . . . . . Used . | . . . . . . . . . . . . Hacking Detections 12 | . 2 1 1 . . . 2 . 3 3 . Full Trace Events 1 | . . . . . . . . . . 1 . Feedback Events . | . . . . . . . . . . . . Feedback Blocked . | . . . . . . . . . . . . Robot Schematics Acquired . | . . . . . . . . . . . . Robots Built . | . . . . . . . . . . . . Matter . | . . . . . . . . . . . . Time . | . . . . . . . . . . . . Total Robot Build Rating . | . . . . . . . . . . . . Part Schematics Acquired . | . . . . . . . . . . . . Parts Built . | . . . . . . . . . . . . Matter . | . . . . . . . . . . . . Time . | . . . . . . . . . . . . Total Part Build Rating . | . . . . . . . . . . . . Parts Repaired . | . . . . . . . . . . . . Time . | . . . . . . . . . . . . Parts Recycled . | . . . . . . . . . . . . Recycled Matter . | . . . . . . . . . . . . Retrieved Matter . | . . . . . . . . . . . . Retrieved Components . | . . . . . . . . . . . . Parts Scanalyzed . | . . . . . . . . . . . . Part Schematics Acquired . | . . . . . . . . . . . . Parts Damaged . | . . . . . . . . . . . . Bothacking | -11 -10 -10 -9 -9 -9 -8 -8 -8 -8 -7 -7 ------------ Run | Scr Mat Min Mat Min Exi Min Mat Gar Mat Fac Gar Used RIF Installer 2 | . . . . . . . . 1 . . 1 Signal Jammer 1 | . . . . . . . . . . . 1 Robots Hacked 8 | . . . . . . . . . . 1 7 Non-combat . | . . . . . . . . . . . . Combat 8 | . . . . . . . . . . 1 7 Robot Hacks Applied 12 | . . . . . . . . . . 2 10 find_garrison 1 | . . . . . . . . . . 1 . spike_heat 4 | . . . . . . . . . . . 4 amplify_resonance 2 | . . . . . . . . . . . 2 overwrite_iff 1 | . . . . . . . . . . . 1 formatsys_high 4 | . . . . . . . . . . 1 3 Relay Couplers Released 26 | . . . . . . . . 9 . . 17 Machine Destruction 26 | . . . . . . . . 9 . . 17 Attached 4 | . . . . . . . . . . 1 3 Robots Rewired . | . . . . . . . . . . . . Allies Hacked . | . . . . . . . . . . . . Hacks Repelled . | . . . . . . . . . . . . Allies | -11 -10 -10 -9 -9 -9 -8 -8 -8 -8 -7 -7 -------- Run | Scr Mat Min Mat Min Exi Min Mat Gar Mat Fac Gar Total Allies 8 | . . . . 3 . . . . . 1 4 Largest Group 3 | . . . . 3 1 1 1 . . 1 2 Highest-Rated Group 64 | . . . . 40 16 16 16 . . 32 64 Highest-Rated Ally 32 | . . . . 16 16 16 16 . . 32 32 Total Orders 2 | . . . . . . . . . . . 2 STAY 1 | . . . . . . . . . . . 1 FOLLOW 1 | . . . . . . . . . . . 1 Ally Attacks 39 | . . . . 18 . . 8 . . . 13 Total Damage 609 | . . . . 235 . . 77 . . . 297 Kills 8 | . . . . 2 . . 2 . . . 4 Allies Corrupted . | . . . . . . . . . . . . Allies Melted . | . . . . . . . . . . . . Intel | -11 -10 -10 -9 -9 -9 -8 -8 -8 -8 -7 -7 ------- Run | Scr Mat Min Mat Min Exi Min Mat Gar Mat Fac Gar Robot Analysis Total . | . . . . . . . . . . . . Derelict Logs Recovered 2 | . . 1 . 1 . . . . . . . Drone Launches . | . . . . . . . . . . . . Drone Recoveries . | . . . . . . . . . . . . Exploration | -11 -10 -10 -9 -9 -9 -8 -8 -8 -8 -7 -7 ------------- Run | Scr Mat Min Mat Min Exi Min Mat Gar Mat Fac Gar Turns Passed 11291 | 147 999 548 909 613 680 488 1573 980 1459 1641 1254 Spaces Moved 5451 | 88 501 308 407 291 352 239 715 483 650 846 571 Core 23 | 23 . . . . . . . . . . . Treads 5428 | 65 501 308 407 291 352 239 715 483 650 846 571 Legs . | . . . . . . . . . . . . Wheels . | . . . . . . . . . . . . Hover . | . . . . . . . . . . . . Flight . | . . . . . . . . . . . . Fastest Speed 50 | 50 160 160 160 180 180 200 165 165 165 165 170 Average Speed 172 | 138 160 160 173 180 192 200 170 165 172 170 178 Slowest Speed 200 | 160 160 160 180 180 200 200 200 165 178 178 198 Overloaded Moves . | . . . . . . . . . . . . Propulsion Burnouts . | . . . . . . . . . . . . Robots Hopped . | . . . . . . . . . . . . Cave-ins Triggered . | . . . . . . . . . . . . Exploration Rate (%) 51 | 5 70 69 34 61 69 40 61 50 55 27 71 Regions Visited 11 Branch Regions 4 Pre-discovered Areas 4 | . . . . . 1 . . . 1 2 . Known Exits Taken 4 | . . . 1 . . . 1 . 1 1 . Unknown Exits Taken 6 | 1 1 1 . 1 1 1 . . . . . Scrap Searched 1 | . . 1 . . . . . . . . . Spaces Dug 2 | . . . . . . . . . 2 . . Terrain Destroyed 3 | . . . . . . . . . 2 . 1 Melee 2 | . . . . . . . . . 2 . . Projectile . | . . . . . . . . . . . . AOE 1 | . . . . . . . . . . . 1 Terrain Rammed . | . . . . . . . . . . . . Walls Destroyed . | . . . . . . . . . . . . Machines Disabled . | . . . . . . . . . . . . Actions | -11 -10 -10 -9 -9 -9 -8 -8 -8 -8 -7 -7 --------- Run | Scr Mat Min Mat Min Exi Min Mat Gar Mat Fac Gar Total 6789 | 103 614 344 526 330 356 244 1015 620 914 991 732 Wait 605 | . 41 21 33 5 . . 184 61 170 69 21 Move 5442 | 87 500 307 406 290 351 238 715 482 649 846 571 Hop . | . . . . . . . . . . . . Pick Up 98 | 5 11 4 11 6 2 2 26 8 4 4 15 Fast Attach 22 | 6 1 . 6 . . . 1 . 2 3 3 Attach 34 | 1 2 . 5 . . . 2 2 4 4 14 Detach 3 | . . . 1 . . . . . . . 2 Swap 54 | . 5 . 5 2 2 1 9 2 6 16 6 Drop 78 | . 7 . 13 3 1 . 30 6 7 11 . Fire 410 | 4 47 12 45 24 . 3 48 49 70 38 70 Melee 2 | . . . . . . . . . 2 . . Ram . | . . . . . . . . . . . . Kick . | . . . . . . . . . . . . Crush 1 | . . . 1 . . . . . . . . Escape Stasis 40 | . . . . . . . . 10 . . 30 Rewire . | . . . . . . . . . . . . Trap . | . . . . . . . . . . . . Miscellaneous . | . . . . . . . . . . . . Route ------- -11/Scrapyard -10/Materials (discovered 3 exits: *Mat x2 / *Min) -10/Mines (discovered 2 exits: *Mat x2) -9/Materials (discovered 2 exits: *Min x2) -9/Mines (discovered 4 exits: *Mat x2 / *Exi / [*Zio]) -9/Exiles -8/Mines -8/Materials (discovered 3 exits: *Fac x2 / Gar) -8/Garrison (discovered 2 exits: *Mat x2) -8/Materials -7/Factory (discovered 3 exits: [*Fac] / [*Low] / Gar) -7/Garrison (discovered 3 exits: [*Fac x3]) History --------- Turn | Location | Event 7 | -11/Scrapyard | Discovered new exit (range 15) 148 | -11/Scrapyard | Entered Materials 307 | -10/Materials | Build established: Mutant 409 | -10/Materials | Discovered new exit (range 12) 619 | -10/Materials | Discovered new exit (range 16) 850 | -10/Materials | Discovered new exit (range 13) 872 | -10/Materials | Core integrity fell below 50% 1147 | -10/Materials | Entered Mines 1251 | -10/Mines | A weapon hastily lodged in a ceiling crevice suddenly fell to the ground 1302 | -10/Mines | Discovered new exit (range 8) 1361 | -10/Mines | Discovered new exit (range 15) 1695 | -10/Mines | Entered Materials 1695 | -9/Materials | Evolved 2 slots: Utility x1, Weapon x1 1696 | -9/Materials | Identified exit to Mines 2224 | -9/Materials | Build established: Tank 2297 | -9/Materials | Lost 3 parts (1u2w) 2604 | -9/Materials | Entered Mines 2746 | -9/Mines | Found a hidden stash of uninstalled traps 2810 | -9/Mines | Discovered new exit (range 8) 2820 | -9/Mines | Assembled infested the area 2821 | -9/Mines | Assisted by bots powering up and referring to "LRC-V3" 2902 | -9/Mines | Discovered new exit (range 9) 3040 | -9/Mines | Learned 8 Materials zone layouts 3047 | -9/Mines | Build established: Hauler-Gunner 3133 | -9/Mines | A Derelict revealed a hidden shortcut to a safe place 3207 | -9/Mines | Deemed a non-threat by the Exiles lab entrance 3209 | -9/Mines | Discovered new exit (range 5) 3217 | -9/Mines | Entered Exiles 3217 | -9/Exiles | Accompanied by 1 ally 3266 | -9/Exiles | Met 8R-AWN 3291 | -9/Exiles | Met EX-HEX 3374 | -9/Exiles | Met EX-DEC 3403 | -9/Exiles | Learned location of Zion (-7) 3610 | -9/Exiles | Met EX-BIN 3638 | -9/Exiles | Aligned with FarCom system 3640 | -9/Exiles | Given EX-Vault access code 3690 | -9/Exiles | Opened EX-Vault 3704 | -9/Exiles | Found Gui. Plasma Cannon 3745 | -9/Exiles | Warned to stay clear of 0b10 Research branches 3873 | -9/Exiles | Discovered new exit (range 12) 3897 | -9/Exiles | Left Exiles lab with Gui. Plasma Cannon 3897 | -9/Exiles | Entered Mines 3897 | -8/Mines | Accompanied by 1 ally 3909 | -8/Mines | Discovered new exit (range 8) 4191 | -8/Mines | Build established: Hauler-Skirmisher 4385 | -8/Mines | Entered Materials 4385 | -8/Materials | Accompanied by 1 ally 4385 | -8/Materials | Evolved 2 slots: Propulsion x1, Utility x1 4386 | -8/Materials | Identified exit to Factory 5880 | -8/Materials | Garrison activated, responded to threat 5958 | -8/Materials | Identified exit to Garrison 5958 | -8/Materials | Entered Garrison 6059 | -8/Garrison | Triggered checkpoint 6187 | -8/Garrison | Triggered checkpoint 6344 | -8/Garrison | Discovered new exit (range 12) 6491 | -8/Garrison | Discovered new exit (range 11) 6516 | -8/Garrison | Installed Relay Interface Framework 6559 | -8/Garrison | Triggered checkpoint 6590 | -8/Garrison | Garrison Relay disabled 6747 | -8/Garrison | Triggered checkpoint 6789 | -8/Garrison | Garrison Relay disabled 6938 | -8/Garrison | Entered Materials 7891 | -8/Materials | Garrison activated, responded to threat 8180 | -8/Materials | Build established: Hauler-Mutant 8276 | -8/Materials | Core integrity fell below 50% 8368 | -8/Materials | Discovered exit to Factory (range 15) 8397 | -8/Materials | Entered Factory 8397 | -7/Factory | Evolved 2 slots: Power x1, Utility x1 8445 | -7/Factory | Discovered new exit (range 15) 8590 | -7/Factory | Build established: Hauler-Skirmisher 9186 | -7/Factory | Build established: Hauler-Mutant 9784 | -7/Factory | Build established: Hauler-Skirmisher 9962 | -7/Factory | Discovered new exit (range 11) 10038 | -7/Factory | Identified exit to Garrison 10038 | -7/Factory | Entered Garrison 10038 | -7/Garrison | Accompanied by 1 ally 10093 | -7/Garrison | Build established: Hauler-Mutant 10100 | -7/Garrison | Triggered checkpoint 10140 | -7/Garrison | Garrison Relay disabled 10252 | -7/Garrison | P-60 Hacker assimilated allied S-27 Virus 10253 | -7/Garrison | Triggered checkpoint 10317 | -7/Garrison | Lost 8 parts (2p2n1u3w) 10405 | -7/Garrison | Core integrity fell below 50% 10445 | -7/Garrison | Build established: Bothacker-Mutant 10494 | -7/Garrison | Discovered new exit (range 10) 10528 | -7/Garrison | Triggered checkpoint 10556 | -7/Garrison | Garrison Relay disabled 10648 | -7/Garrison | Triggered checkpoint 10656 | -7/Garrison | Triggered checkpoint 10724 | -7/Garrison | Lost 5 parts (2p1n1u1w) 10759 | -7/Garrison | Discovered new exit (range 13) 10962 | -7/Garrison | Triggered checkpoint 11021 | -7/Garrison | Garrison Relay disabled 11162 | -7/Garrison | Discovered new exit (range 10) 11192 | -7/Garrison | Triggered checkpoint 11212 | -7/Garrison | Garrison Relay disabled 11288 | -7/Garrison | Expanded RIF knowledge: Signal Jamming 11292 | -7/Garrison | Self-destructed Last Messages --------------- Installing primary routines, ETC: 6. 11193_ Reactivated Guardian 4d. 11212_ System corrupted: Enh. Autogun targeting data glitched. 11212_ Garrison Relay disabled. 11212_ Relay Coupler [Sentry] tumbles out of relay unit. 11212_ Relay Coupler [NC] tumbles out of relay unit. 11212_ Relay Coupler [Grunt] tumbles out of relay unit. 11215_ Acquired Relay Coupler [Sentry]. 11218_ Acquired Relay Coupler [Grunt]. 11221_ Acquired Relay Coupler [NC]. 11249_ Triggered Stasis Trap. 11249_ A bubble of rippling energy engulfs the area. 11249_ Field strength at 70. 11251_ Field strength at 40. 11252_ Field strength at 10. 11253_ Stasis field depleted. 11254_ System corrupted: Component data lost. 11284_ System corrupted: Energy discharge (-120). 11286_ Initiating installation procedure... 11288_ Expanded RIF knowledge: Signal Jamming. Map ----- +----------------------------------------------------+ | ?????????????????????????????????????????????????? | | ?????????????????????????????????????????????????? | | ?????????????????????????????????????????????????? | | ?????????????????????????????????????????????????? | | ?????????????????????????????????????????????????? | | ?????????????????????????????????????????????????? | | ?????????????????????????????????????????????????? | | ?????????????????????????????????????????????????? | | ?????????????????????????????????????????????????? | | ?????????????????????????????????????????????????? | | ?????????????????????????????????????????????????? | | ?????????????????????????????????????????????????? | | ?????????????????????????????????????????????????? | | ?????????????????????????????????????????????????? | | ?????????????????????????????????????????????????? | | ?????????????????????????????????????????????????? | | ?????????????????????????????????????????????????? | | ?????????????????????????????????????????????????? | | ?????????????????????????????????????????????????? | | ?????????????????????????????????????????????????? | | ?????????????????????????????????????????????????? | | ???????????#######???????????????????????????????? | | ???????????# #?????#####?????????????????????? | | ???######### ###???#"""#?????????????????????? | | ???# #???#" "#?????????????????????? | | ???# ########### #???#"@"#?????????????????????? | | ??#""" "#????????# #???#" "#?????????????????????? | | ??#######????????# #???##Y##?????????????????????? | | ?????????????????# #???# Y#?????????????????????? | | ???????????????### ##### < #?????????????????????? | | ???????????????# #?????????????????????? | | ???????????????# #?????????????????????? | | ???????????????# ##########?????????????????????? | | ???????????????# #??????????????????????????????? | | ???????????????# #??????????????????????????????? | | ???????????????# #??????????????????????????????? | | ???????????????# #??????????????????????????????? | | ???????????????# #??????????????????????????????? | | ???????????????# #??????????????????????????????? | | ####???????????# #??????????????????????????????? | | #???????????# #??????????????????????????????? | | ######??????# #???????? #??????????????????? | | ^^ ######## ### " #??????????????????? | | ^^ + """ ?????????????????????? | | ### " "???????????????????? | | ## ###########???????? "???????????????????? | | ## ###??????????????????????????????????????? | | #??????????????????????????????????????? | | #??????????????????????????????????????? | | #??????????????????????????????????????? | +----------------------------------------------------+ Best States ------------- Heat Dissipation 61 Energy Generation 29 Energy Capacity 500 Matter Stores 300 Matter Capacity 300 Sight Range 16 Terrain Scan Density 10 Armor Coverage 225 Resistance: KI 30 Evasion (%) 50 Recoil Reduction 3 Relay Coupler Types 39 Relay Coupler Value 1 Item Schematics ----------------- None Robot Schematics ------------------ None Fabricated ------------ Nothing Alien Tech Used ----------------- None Achievements -------------- None Challenges ------------ None Game ------ Seed ImprinterBiometalTorch Manual? 0 Play Time 01:04:19 Cumulative 123.0 hours Start 2020.11.01 @ 22:22:26 End 2020.11.02 @ 22:56:39 Sessions 7 Manual Loads 0 Difficulty Rogue Special Mode Halloween2020/ForbiddenLore Game No. 155 Rogue 68 Adventurer 87 Explorer 0 Win Type - Total 4 Types 3/0/0/1/0/0/0/0/0 Lore% 54 Gallery% 65 Achievement% 55 Wizard Run 0 Options --------- ASCII 0 Keyboard 1 Movement Numpad Keybinds 0 Fullscreen 1 Font 18/Smallcaps Map View 76x50 Tactical HUD 1 Map Filters NONE Filters NONE Steam 1 RUN: bced7b2c-917c-4a73-a340-880deba383bf